lending/lending_fUSD_20240509
["ID","MTS","AMOUNT","RATE_DAILY","PERIOD"]
[326718039,1715281847612,-170.39,0.000376,3]
[326718040,1715281847622,-170.39,0.000376,3]
[326718041,1715281847631,-170.39,0.000376,3]
[326718042,1715281847641,-170.39,0.000376,3]
[326718043,1715281847652,-170.39,0.000376,3]
[326718044,1715281847662,-170.39,0.000376,3]
[326718045,1715281847671,-170.39,0.000376,3]
[326718046,1715281847682,-170.39,0.000376,3]
[326718047,1715281847691,-170.39,0.000376,3]
[326718048,1715281847703,-170.39,0.000376,3]
[326718049,1715281847714,-170.39,0.000376,3]
[326718050,1715281847724,-152.12902793,0.00037674,7]
[326718051,1715281847733,-500.0,0.00037746,10]
[326718052,1715281847743,-500.0,0.00037746,10]
[326718053,1715281847752,-228.0,0.00037776,2]
[326718054,1715281847763,-1508.55072853,0.000378,2]
[326718055,1715281847772,-280.14393,0.00037998,2]
[326718056,1715281847782,-542.39179929,0.00038,30]
[326718057,1715281847792,-256.75,0.00038,2]
[326718058,1715281847802,-1000.0,0.000381,2]
[326718059,1715281847811,-2000.0,0.000381,2]
[326718060,1715281847822,-219.69,0.000381,2]
[326718061,1715281847832,-3757.01894137,0.00038233,2]
[326718062,1715281847843,-439.90473764,0.00038233,2]
[326718063,1715281847854,-1000.0,0.00038356,30]
[326718064,1715281847863,-1000.0,0.00038356,30]
[326718065,1715281847873,-153.90874373,0.00038472,7]
[326718066,1715281847882,-152.23537074,0.00038596,2]
[326718067,1715281847892,-1000.0,0.00038676,30]
[326718068,1715281847902,-150.39,0.00038813,2]
[326718069,1715281847913,-156.37,0.00038813,2]
[326718070,1715281847923,-500.0,0.00038842,10]
[326718071,1715281847932,-500.0,0.00038842,10]
[326718072,1715281847942,-152.10816878,0.00038848,7]
[326718073,1715281847951,-883.16357776,0.000389,30]
[326718074,1715281847961,-4095.13168797,0.000389,15]
[326718075,1715281847971,-332.73,0.00038904,120]
[326718076,1715281847980,-749.98609132,0.00038994,4]
[326718077,1715281847990,-2218.37398119,0.00038994,2]
[326718078,1715281847999,-237.13391756,0.00038995,4]
[326718079,1715281848010,-1000.0,0.00038995,30]
[326718080,1715281848019,-15423.35542186,0.00039,10]
[326718081,1715281848029,-1000.0,0.00039,120]
[326718082,1715281848039,-2500.0,0.00039124,90]
[326718083,1715281848049,-310.50665328,0.00039148,2]
[326718084,1715281848058,-310.50665328,0.00039148,2]
[326718085,1715281848068,-310.50665328,0.00039148,2]
[326718086,1715281848240,-310.50665328,0.00039148,2]
[326718087,1715281848250,-310.50665328,0.00039148,2]
[326718088,1715281848259,-150.0,0.0003915,7]
[326718089,1715281848268,-150.0,0.0003915,7]
[326718090,1715281848277,-150.0,0.0003915,7]
[326718091,1715281848287,-1000.0,0.00039315,30]
[326718092,1715281848296,-152.0,0.00039403,3]
[326718093,1715281848305,-1388.31545348,0.00039437,13]
[326718094,1715281848314,-256.75,0.000396,7]
[326718095,1715281848323,-1000.0,0.00039635,30]
[326718096,1715281848333,-1000.0,0.00039669,20]
[326718097,1715281848342,-200.0,0.0003967,15]
[326718098,1715281848354,-1000.0,0.0003967,20]
[326718099,1715281848363,-1000.0,0.0003967,20]
[326718100,1715281848372,-200.0,0.0003967,20]
[326718101,1715281848382,-219.69,0.000397,7]
[326718102,1715281848391,-170.39,0.000397,3]
[326718103,1715281848401,-170.39,0.000397,3]
[326718104,1715281848410,-170.39,0.000397,3]
[326718105,1715281848420,-170.39,0.000397,3]
[326718106,1715281848429,-170.39,0.000397,3]
[326718107,1715281848438,-170.39,0.000397,3]
[326718108,1715281848448,-170.39,0.000397,3]
[326718109,1715281848458,-170.39,0.000397,3]
[326718110,1715281848467,-170.39,0.000397,3]
[326718111,1715281848478,-170.39,0.000397,3]
[326718112,1715281848497,-170.39,0.000397,3]
[326718113,1715281848507,-170.39,0.000397,3]
[326718114,1715281848516,-170.39,0.000397,3]
[326718115,1715281848526,-170.39,0.000397,3]
[326718116,1715281848535,-170.39,0.000397,3]
[326718117,1715281848545,-170.39,0.000397,3]
[326718118,1715281848554,-170.39,0.000397,3]
[326718119,1715281848563,-170.39,0.000397,3]
[326718120,1715281848573,-170.39,0.000397,3]
[326718121,1715281848583,-170.39,0.000397,3]
[326718122,1715281848592,-304.99333223,0.00039798,4]
[326718123,1715281848601,-234.43130943,0.00039834,7]
[326718124,1715281848611,-671.07757411,0.0003984,10]
[326718125,1715281848621,-151.44278705,0.00039862,7]
[326718126,1715281848630,-1361.84,0.0003987,30]
[326718127,1715281848639,-1361.84,0.0003987,30]
[326718128,1715281848650,-1361.84,0.0003987,30]
[326718129,1715281848668,-1361.84,0.0003987,30]
[326718130,1715281848684,-160.0,0.000399,15]
[326718131,1715281848693,-152.59598859,0.000399,7]
[326718132,1715281848702,-152.59598859,0.000399,7]
[326718133,1715281848711,-152.59598859,0.000399,7]
[326718134,1715281848721,-152.59598859,0.000399,7]
[326718135,1715281848730,-152.59598859,0.000399,7]
[326718136,1715281848739,-152.59598859,0.000399,7]
[326718137,1715281848749,-152.59598859,0.000399,7]
[326718138,1715281848759,-152.59598859,0.000399,7]
[326718139,1715281848768,-152.59598859,0.000399,7]
[326718140,1715281848777,-152.59598859,0.000399,7]
[326718141,1715281848787,-152.59598859,0.000399,7]
[326718142,1715281848796,-152.59598859,0.000399,7]
[326718143,1715281848805,-152.59598859,0.000399,7]
[326718144,1715281848814,-153.09,0.000399,7]
[326718145,1715281848823,-427.34376804,0.000399,7]
[326718146,1715281848832,-427.34376804,0.000399,7]
[326718147,1715281848842,-427.34376804,0.000399,7]
[326718148,1715281848851,-427.34376804,0.000399,7]
[326718149,1715281848862,-427.34376804,0.000399,7]
[326718150,1715281848871,-427.34376804,0.000399,7]
[326718151,1715281848880,-427.34376804,0.000399,7]
[326718152,1715281848889,-427.34376804,0.000399,7]
[326718153,1715281848899,-427.34376804,0.000399,7]
[326718154,1715281848908,-164.12951096,0.000399,7]
[326718155,1715281848918,-164.12951096,0.000399,7]
[326718156,1715281848928,-164.12951096,0.000399,7]
[326718157,1715281848937,-164.62,0.000399,7]
[326718158,1715281848947,-154.56306914,0.000399,7]
[326718159,1715281848956,-154.56306914,0.000399,7]
[326718160,1715281848966,-154.56306914,0.000399,7]
[326718161,1715281848975,-154.56306914,0.000399,7]
[326718162,1715281848983,-154.56306914,0.000399,7]
[326718163,1715281848993,-154.56306914,0.000399,7]
[326718164,1715281849002,-154.56306914,0.000399,7]
[326718165,1715281849011,-154.56306914,0.000399,7]
[326718166,1715281849021,-161.34,0.000399,7]
[326718167,1715281849031,-161.2228585,0.000399,7]
[326718168,1715281849041,-161.86687471,0.000399,7]
[326718169,1715281849051,-161.86687471,0.000399,7]
[326718170,1715281849061,-161.86687471,0.000399,7]
[326718171,1715281849070,-161.86687471,0.000399,7]
[326718172,1715281849080,-162.36,0.000399,7]
[326718173,1715281849089,-161.94187471,0.000399,7]
[326718174,1715281849101,-161.94187471,0.000399,7]
[326718175,1715281849111,-161.94187471,0.000399,7]
[326718176,1715281849120,-161.94187471,0.000399,7]
[326718177,1715281849129,-161.94187471,0.000399,7]
[326718178,1715281849139,-161.94187471,0.000399,7]
[326718179,1715281849148,-161.94187471,0.000399,7]
[326718180,1715281849165,-161.94187471,0.000399,7]
[326718181,1715281849174,-161.94187471,0.000399,7]
[326718182,1715281849184,-500.0,0.00039938,10]
[326718183,1715281849194,-500.0,0.00039938,10]
[326718184,1715281849206,-1000.0,0.00039954,30]
[326718185,1715281849217,-537.0035074,0.00039998,4]
[326718186,1715281849227,-1413.08274788,0.00039998,4]
[326718187,1715281849239,-310.50665328,0.00039999,2]
[326718188,1715281849248,-36641.64190573,0.0004,20]
[326718189,1715281849257,-1036.92674618,0.0004,7]
[326718190,1715281849267,-22285.25110944,0.0004,4]
[326718191,1715281849276,-1357.93794948,0.0004,5]
[326718192,1715281849299,-2436.5723085,0.0004,7]
[326718193,1715281849315,-1000.0,0.0004,7]
[326718194,1715281849336,-242.29309572,0.0004,2]
[326718195,1715281849356,-619.58325694,0.0004,2]
[326718196,1715281849375,-370.05408808,0.0004,2]
[326718197,1715281849393,-1000.0,0.0004,5]
[326718198,1715281849410,-558.39345493,0.0004,4]
[326718199,1715281849424,-156.03095379,0.0004,4]
[326718200,1715281849445,-10020.19832533,0.0004,3]
[326718201,1715281849465,-850.55196341,0.0004,5]
[326718202,1715281849478,-305.64915074,0.0004,4]
[326718203,1715281849494,-393.5649647,0.0004,7]
[326718204,1715281849509,-1500.6,0.0004,2]
[326718205,1715281849527,-760.89253105,0.0004,10]
[326718206,1715281849541,-260.0,0.0004,14]
[326718207,1715281849555,-98577.75815341,0.0004,7]
[326718208,1715281849569,-4995.3388173,0.0004,2]
[326718209,1715281849585,-4064.57489332,0.0004,4]
[326718210,1715281849605,-10106.03879352,0.0004,3]
[326718211,1715281849619,-2859.74741592,0.0004,20]
[326718212,1715281849634,-2110.0,0.0004,15]
[326718213,1715281849649,-27231.0,0.0004,10]
[326718214,1715281849665,-8016.38360897,0.0004,7]
[326718215,1715281849681,-1657.17943564,0.0004,2]
[326718216,1715281849696,-500.0,0.0004,5]
[326718217,1715281849711,-9010.26379603,0.0004,2]
[326718218,1715281849726,-559.35,0.0004,10]
[326718219,1715281849740,-202.42159184,0.0004,7]
[326718220,1715281849755,-693.0,0.0004,2]
[326718221,1715281849769,-675.86335532,0.0004,20]
[326718222,1715281849785,-37103.37902035,0.0004,7]
[326718223,1715281849799,-148785.09190112,0.0004,7]
[326718224,1715281849814,-2000.0,0.0004,5]
[326718225,1715281849829,-5000.0,0.0004,3]
[326718226,1715281849843,-5000.0,0.0004,2]
[326718227,1715281849860,-5000.0,0.0004,4]
[326718228,1715281849873,-500.0,0.0004,4]
[326718229,1715281849889,-2000.0,0.0004,5]
[326718230,1715281849903,-2000.0,0.0004,5]
[326718231,1715281849917,-2000.0,0.0004,5]
[326718232,1715281849932,-49404.77531862,0.0004,7]
[326718233,1715281849946,-3273.45156752,0.0004,20]
[326718234,1715281849961,-2000.0,0.0004,5]
[326718235,1715281849977,-194.29176272,0.0004,120]
[326718236,1715281849992,-1097.19740637,0.0004,90]
[326718237,1715281850007,-319.62537595,0.0004,60]
[326718238,1715281850022,-10151.9516461,0.0004,120]
[326718239,1715281850036,-1837.62992564,0.0004,10]
[326718240,1715281850051,-1834.32129977,0.0004,4]
[326718241,1715281850066,-13000.0,0.0004,2]
[326718242,1715281850081,-155.0,0.0004,2]
[326718243,1715281850096,-2878.7514067,0.0004,30]
[326718244,1715281850114,-458.03122557,0.0004,30]
[326718245,1715281850129,-3038.02336645,0.0004,120]
[326718246,1715281850144,-201.58102916,0.0004,30]
[326718247,1715281850161,-367.26299635,0.0004,30]
[326718248,1715281850175,-157.94863373,0.0004,30]
[326718249,1715281850190,-1198.96632385,0.0004,120]
[326718250,1715281850205,-741.44577528,0.0004,30]
[326718251,1715281850220,-706.32345259,0.0004,120]
[326718252,1715281850235,-20000.0,0.0004,2]
[326718253,1715281850251,-2000.0,0.0004,7]
[326718254,1715281850266,-200.0,0.0004,7]
[326718255,1715281850281,-191.28122747,0.0004,30]
[326718256,1715281850296,-200.16641984,0.0004,14]
[326718257,1715281850311,-2000.0,0.0004,7]
[326718258,1715281850326,-200.0,0.0004,7]
[326718259,1715281850341,-851.16,0.0004,120]
[326718260,1715281850359,-343.92,0.0004,120]
[326718261,1715281850374,-397.022844,0.0004,15]
[326718262,1715281850387,-151.0,0.0004,14]
[326718263,1715281850402,-151.0,0.0004,14]
[326718264,1715281850416,-192.904275,0.0004,14]
[326718265,1715281850432,-495.290951,0.0004,14]
[326718266,1715281850447,-495.290951,0.0004,14]
[326718267,1715281850463,-151.0,0.0004,14]
[326718268,1715281850477,-151.0,0.0004,14]
[326718269,1715281850492,-501.10583,0.0004,14]
[326718270,1715281850507,-960.369892,0.0004,14]
[326718271,1715281850521,-501.10583,0.0004,14]
[326718272,1715281850535,-960.369892,0.0004,14]
[326718273,1715281850552,-179.183275,0.0004,14]
[326718274,1715281850566,-179.183275,0.0004,14]
[326718275,1715281850580,-208.621296,0.0004,14]
[326718276,1715281850595,-208.621296,0.0004,14]
[326718277,1715281850612,-151.0,0.0004,14]
[326718278,1715281850627,-151.0,0.0004,14]
[326718279,1715281850642,-151.0,0.0004,14]
[326718280,1715281850658,-151.0,0.0004,14]
[326718281,1715281850673,-301.1099419,0.0004001,30]
[326718282,1715281850687,-427.34376804,0.00040101,7]
[326718283,1715281850702,-161.2228585,0.00040101,7]
[326718284,1715281850718,-161.94187471,0.00040101,7]
[326718285,1715281850731,-1361.84,0.00040144,30]
[326718286,1715281850740,-1361.84,0.00040144,30]
[326718287,1715281850750,-150.0,0.00040237,7]
[326718288,1715281850760,-1000.0,0.00040274,30]
[326718289,1715281850770,-2776.4,0.00040327,79]
[326718290,1715281850779,-60534.88413847,0.0004033,6]
[326718291,1715281850789,-154.56306914,0.00040363,7]
[326718292,1715281850798,-165.49774951,0.00040393,30]
[326718293,1715281851158,-200.0,0.000404,7]
[326718294,1715281851200,-2000.0,0.000404,7]
[326718295,1715281851213,-200.0,0.000404,7]
[326718296,1715281851223,-1361.84,0.00040417,30]
[326718297,1715281851233,-1361.84,0.00040417,30]
[326718298,1715281851243,-1000.0,0.0004046,3]
[326718299,1715281851253,-768.95814143,0.0004046,10]
[326718300,1715281851263,-1000.0,0.0004046,8]
[326718301,1715281851272,-1000.0,0.0004046,7]
[326718302,1715281851282,-1000.0,0.0004046,9]
[326718303,1715281851291,-1000.0,0.0004046,4]
[326718304,1715281851301,-1000.0,0.0004046,5]
[326718305,1715281851310,-1000.0,0.0004046,6]
[326718306,1715281851320,-260.0,0.000405,14]
[326718307,1715281851329,-2110.0,0.000405,15]
[326718308,1715281851338,-154.79,0.000405,7]
[326718309,1715281851348,-427.34376804,0.00040547,7]
[326718310,1715281851358,-161.94187471,0.00040547,7]
[326718311,1715281851368,-300.0,0.00040575,2]
[326718312,1715281851377,-523.05,0.00040575,2]
[326718313,1715281851387,-1000.0,0.00040594,30]
[326718314,1715281851396,-282.6245,0.00040688,7]
[326718315,1715281851406,-1361.84,0.0004069,30]
[326718316,1715281851415,-1361.84,0.0004069,30]
[326718317,1715281851424,-210.00658454,0.00040769,30]
[326718318,1715281851433,-228.0,0.00040776,2]
[326718319,1715281851443,-154.56306914,0.00040888,7]
[326718320,1715281851455,-502.0287632,0.00040889,20]
[326718321,1715281851469,-19451.37430339,0.00040895,7]
[326718322,1715281851478,-1352.94770369,0.000409,60]
[326718323,1715281851489,-169.77281588,0.000409,15]
[326718324,1715281851509,-1000.0,0.00040913,30]
[326718325,1715281851518,-4174.30481418,0.00040956,4]
[326718326,1715281851527,-992.0,0.00040959,28]
[326718327,1715281851537,-1361.84,0.00040963,30]
[326718328,1715281851546,-1361.84,0.00040963,30]
[326718329,1715281851556,-427.34376804,0.00040992,7]
[326718330,1715281851566,-161.94187471,0.00040992,7]
[326718331,1715281851575,-822.70136939,0.00040993,120]
[326718332,1715281851585,-587.17173335,0.00040996,120]
[326718333,1715281851595,-310.50665328,0.00040997,7]
[326718334,1715281851604,-542584.86754875,0.00040998,7]
[326718335,1715281851615,-160200.3605829,0.00040998,7]
[326718336,1715281852244,-250.0,0.00021918,2]
[326718337,1715281852255,-191.92227681,0.00027037,2]
[326718338,1715281852264,-1595.25934319,0.00027397,10]
[326718339,1715281852276,-663.62065681,0.00027397,10]
[326718340,1715281852285,-151.0,0.0004,14]
[326718341,1715281852295,-1658.72364799,0.00040998,7]
[326718342,1715281852307,-1512.69948853,0.00040998,7]
[326718343,1715281852319,-16654.23673131,0.00040998,7]
[326718344,1715281852330,-2957.21493839,0.00040998,7]
[326718348,1715281853277,-2747.11527509,0.00040998,7]
[326718349,1715281853289,-1288.24683318,0.00040998,7]
[326718350,1715281853300,-316.01403212,0.00040998,7]
[326718351,1715281853312,-285.5184421,0.00040998,7]
[326718352,1715281853324,-811.0,0.00040998,7]
[326718353,1715281853335,-1117.65997474,0.00040998,7]
[326718354,1715281853347,-9466.65,0.00040998,7]
[326718355,1715281853361,-6305.26975552,0.00040998,7]
[326718356,1715281853373,-1413.0944,0.00040998,7]
[326718357,1715281865135,15037.46639927,0.00012,2]
[326718358,1715281897246,3733.35257594,0.00011696,2]
[326718359,1715281902082,1971.83382113,9e-05,2]
[326718360,1715281906995,222.26229679,0.00012,2]
[326718361,1715281907902,471.24837431,0.00012,2]
[326718362,1715281908711,155.45555165,0.00012,2]
[326718363,1715282056004,252.92727139,0.00012,2]
[326718364,1715282065190,178.49749891,0.00012,2]
[326718365,1715282180189,298.53572696,0.00012,2]
[326718366,1715282390861,155.50093805,0.00012,120]
[326718374,1715283032500,-150.53,0.00012451,2]
[326718376,1715283032510,-474.23934514,0.00012673,2]
[326718377,1715283032526,-551.24148495,0.00012673,2]
[326718379,1715283032537,-278.91737401,0.00012673,2]
[326718397,1715283033895,-4251.5324085,0.00012673,2]
[326718399,1715283033905,-4591.42341058,0.00012674,2]
[326718401,1715283033915,-2183.75134658,0.00012675,2]
[326718403,1715283033925,-536.95226347,0.00012682,2]
[326718405,1715283033935,-207.72,0.00012683,2]
[326718407,1715283033945,-200.0,0.00013842,2]
[326718409,1715283033954,-207.72,0.00013952,2]
[326718411,1715283033964,-427.72367538,0.00013982,2]
[326718413,1715283033974,-150.0,0.00013988,2]
[326718415,1715283033983,-156.08637497,0.00013989,2]
[326718417,1715283033993,-156.0188484,0.00013989,2]
[326718419,1715283034002,-265.77308436,0.00013989,2]
[326718421,1715283034011,-782.13638794,0.00013989,2]
[326718423,1715283034021,-177.54622384,0.00013989,2]
[326718425,1715283034031,-150.99,0.00013989,2]
[326718427,1715283034040,-252.62597998,0.00013989,2]
[326718429,1715283034054,-636.22402002,0.00013989,2]
[326718431,1715283034063,-499.99,0.00013989,2]
[326718433,1715283034073,-935.92,0.00013989,2]
[326718435,1715283034082,-999.99,0.00013989,2]
[326718437,1715283034092,-721.97,0.00013989,2]
[326718439,1715283034103,-150.99,0.00013989,2]
[326718442,1715283034112,-250.0,0.00013992,2]
[326718444,1715283034123,-1006.743388,0.00014,2]
[326718445,1715283034132,-150.53,0.00014008,2]
[326718447,1715283034142,-288.41,0.00014072,2]
[326718449,1715283034151,-1898.28,0.00014106,2]
[326718451,1715283034160,-899.15,0.00014106,2]
[326718453,1715283034170,-19433.24,0.00014224,2]
[326718455,1715283034179,-6269.68,0.00014224,2]
[326718457,1715283034189,-800.0,0.00014372,2]
[326718459,1715283034198,-175.3,0.00014478,2]
[326718461,1715283034208,-972.23,0.00014661,2]
[326718463,1715283034217,-21221.96,0.00014661,2]
[326718465,1715283034227,-508.37,0.00014701,2]
[326718467,1715283034236,-711.42259671,0.00014998,2]
[326718469,1715283034246,-155.0,0.00014999,2]
[326718471,1715283034256,-155.09581377,0.00014999,2]
[326718473,1715283034265,-185.71650334,0.00015,2]
[326718474,1715283034275,-37426.70421522,0.00015,2]
[326718476,1715283034285,-1042.02397427,0.00015,2]
[326718478,1715283034295,-618.36792039,0.00015,2]
[326718480,1715283034304,-207.72,0.0001522,2]
[326718482,1715283034315,-1327.9,0.00015277,2]
[326718484,1715283034325,-6561.06,0.00015277,2]
[326718486,1715283034334,-960.9991,0.00015287,2]
[326718488,1715283034344,-185.88,0.00015307,2]
[326718490,1715283034353,-150.0,0.00015337,2]
[326718492,1715283034364,-3075.28,0.00015369,2]
[326718494,1715283034374,-7699.11,0.00015387,2]
[326718496,1715283034384,-93914.55,0.00015387,2]
[326718498,1715283034393,-318.3,0.00015387,2]
[326718499,1715283034403,-7291.55,0.00015387,2]
[326718501,1715283034412,-210.0,0.00015387,2]
[326718503,1715283034421,-150.53,0.00015564,2]
[326718505,1715283034431,-800.0,0.00016169,2]
[326718507,1715283034440,-207.72,0.00016488,2]
[326718509,1715283034450,-657.32,0.00016632,2]
[326718511,1715283034460,-250.0,0.00016802,2]
[326718513,1715283034469,-293.0,0.00016925,2]
[326718515,1715283034479,-730.77,0.00016928,2]
[326718517,1715283034489,-11458.83,0.00016929,2]
[326718519,1715283034499,-19433.24,0.00016963,2]
[326718521,1715283034509,-730.77,0.00016974,2]
[326718523,1715283034520,-730.77,0.00017021,2]
[326718525,1715283034531,-730.77,0.00017067,2]
[326718527,1715283034541,-730.77,0.00017114,2]
[326718529,1715283034551,-150.53,0.0001712,2]
[326718531,1715283034562,-730.77,0.0001716,2]
[326718533,1715283034572,-730.77,0.00017206,2]
[326718535,1715283034582,-730.77,0.00017253,2]
[326718537,1715283034591,-730.77,0.00017299,2]
[326718538,1715283034604,-730.77,0.00017346,2]
[326718540,1715283034614,-500.0,0.00017378,2]
[326718542,1715283034624,-2763.46,0.00017383,2]
[326718544,1715283034633,-730.77,0.00017392,2]
[326718546,1715283034642,-730.77,0.00017439,2]
[326718548,1715283034652,-730.77,0.00017485,2]
[326718550,1715283034664,-730.77,0.00017531,2]
[326718552,1715283034673,-730.77,0.00017578,2]
[326718554,1715283034683,-730.77,0.00017624,2]
[326718556,1715283034693,-730.77,0.00017671,2]
[326718558,1715283034702,-730.77,0.00017717,2]
[326718560,1715283034717,-207.72,0.00017757,2]
[326718561,1715283034727,-730.77,0.00017764,2]
[326718562,1715283034736,-730.77,0.0001781,2]
[326718563,1715283034746,-159.58,0.00017838,2]
[326718564,1715283034755,-800.0,0.00017965,2]
[326718565,1715283034765,-500.0,0.000185,2]
[326718566,1715283034775,-9999.99,0.000185,2]
[326718567,1715283034785,-7505.56,0.000185,2]
[326718568,1715283034795,-499.99,0.000185,2]
[326718569,1715283034806,-411.0,0.00018618,2]
[326718571,1715283034816,-150.53,0.00018677,2]
[326718573,1715283034827,-207.72,0.00019025,2]
[326718575,1715283034837,-150.39,0.00019178,2]
[326718577,1715283034847,-19433.24,0.00019703,2]
[326718579,1715283034858,-800.0,0.00019762,2]
[326718581,1715283034868,-2601.74537014,0.0002,2]
[326718582,1715283034879,-491.9403017,0.0002,2]
[326718583,1715283034889,-381.58071757,0.0002,2]
[326718584,1715283034900,-305.51,0.00020145,2]
[326718585,1715283034910,-576.0,0.0002048,2]
[326718586,1715283034920,-800.0,0.00021558,2]
[326718587,1715283034930,-5000.0,0.00021855,2]
[326718588,1715283034940,-250.0,0.00021918,2]
[326718589,1715283034950,-488.0,0.00022528,2]
[326718590,1715283034960,-43558.89215385,0.00023087,2]
[326718591,1715283034975,-6187.40831029,0.00023087,2]
[326718592,1715283034987,-14498.57282643,0.00023087,2]
[326718593,1715283034999,-20844.75469089,0.00023087,2]
[326718594,1715283035010,-617.0,0.000249,3]
[326718595,1715283035020,-542399.19024237,0.00025,2]
[326718624,1715283041672,-11627.429465,0.00025,2]
[326718629,1715283041692,-14923.583495,0.00025,2]
[326718634,1715283041715,-775.896,0.00025,2]
[326718642,1715283041733,-603.46325257,0.00025,2]
[326718647,1715283041747,-301775.65035056,0.00025,2]
[326718651,1715283041760,-1803.0,0.00025,2]
[326718655,1715283041772,-500.0,0.00025,2]
[326718659,1715283041785,-441.30799049,0.00025,2]
[326718661,1715283041797,-1599.77159946,0.00025,2]
[326718662,1715283041810,-2258.12544579,0.00025,2]
[326718663,1715283041822,-328.7241325,0.00025,2]
[326718664,1715283041835,-1412.1838911,0.00025,2]
[326718665,1715283041847,-467.26280354,0.00025,2]
[326718666,1715283041862,-1356.73969651,0.00025,2]
[326718667,1715283041874,-1606.41088121,0.00025,2]
[326718668,1715283041887,-618.33179,0.00025,2]
[326718669,1715283041899,-1112.92577071,0.00025,2]
[326718670,1715283041912,-4779.39416064,0.00025,2]
[326718671,1715283041924,-775.77409809,0.00025,2]
[326718672,1715283041937,-783677.72454926,0.00025,2]
[326718673,1715283041948,-288.41,0.00025305,2]
[326718674,1715283041958,-200.0,0.00026368,2]
[326718675,1715283041969,-150.39,0.00027593,2]
[326718676,1715283041979,-600.0,0.00029,30]
[326718677,1715283041990,-159.58,0.0002907,2]
[326718678,1715283042000,-529.09493331,0.00029982,2]
[326718679,1715283042012,-1607.92618494,0.0003,4]
[326718680,1715283042023,-155.0,0.0003,2]
[326718681,1715283042034,-665.1824129,0.0003,4]
[326718682,1715283042044,-2170.82789106,0.0003,10]
[326718683,1715283042055,-5681.44871975,0.0003,2]
[326718684,1715283042066,-19366.7269474,0.0003,4]
[326718685,1715283042077,-600.0,0.0003,31]
[326718686,1715283042088,-185.88,0.00030649,120]
[326718687,1715283042098,-600.0,0.00031,32]
[326718688,1715283042111,-177.83075949,0.00031299,7]
[326718689,1715283042120,-529.09493331,0.00031301,2]
[326718690,1715283042130,-333.01810814,0.00032,4]
[326718691,1715283042140,-177.83075949,0.0003202,7]
[326718692,1715283042149,-156.9334193,0.00032036,7]
[326718693,1715283042159,-177.83075949,0.00032101,7]
[326718694,1715283042169,-156.9334193,0.00032191,7]
[326718695,1715283042179,-529.09493331,0.00032619,2]
[326718696,1715283042189,-156.9334193,0.00032691,7]
[326718697,1715283042200,-156.9334193,0.00033125,7]
[326718698,1715283042210,-155.22,0.000335,2]
[326718699,1715283042220,-155.22,0.000335,2]
[326718700,1715283042230,-155.22,0.000335,2]
[326718701,1715283042240,-155.22,0.000335,2]
[326718702,1715283042250,-529.09493331,0.00033938,2]
[326718703,1715283042260,-156.9334193,0.00034479,7]
[326718704,1715283042271,-153.90874373,0.00034663,7]
[326718705,1715283042281,-500.0,0.00034806,3]
[326718706,1715283042291,-500.0,0.00034815,3]
[326718707,1715283042301,-500.0,0.00034824,3]
[326718708,1715283042311,-500.0,0.00034832,3]
[326718709,1715283042322,-500.0,0.00034841,3]
[326718710,1715283042332,-500.0,0.0003485,3]